lending/lending_fUSD_20241211
["ID","MTS","AMOUNT","RATE_DAILY","PERIOD"]
[344961364,1733897491194,-500.0,0.00010979,2]
[344961365,1733897491204,-500.0,0.00010979,2]
[344961366,1733897491213,-377.24,0.00010979,2]
[344961367,1733897491222,-590.24836095,0.00010979,2]
[344961368,1733897491232,-500.0,0.00010979,2]
[344961369,1733897491241,-500.0,0.00010979,2]
[344961370,1733897491250,-500.0,0.00010979,2]
[344961371,1733897491263,-500.0,0.00010979,2]
[344961372,1733897491272,-500.0,0.00010979,2]
[344961373,1733897491281,-500.0,0.00010979,2]
[344961374,1733897491290,-500.0,0.00010979,2]
[344961375,1733897491299,-500.0,0.00010979,2]
[344961376,1733897491308,-500.0,0.00010979,2]
[344961377,1733897491317,-500.0,0.00010979,2]
[344961378,1733897491327,-500.0,0.00010979,2]
[344961379,1733897491336,-500.0,0.00010979,2]
[344961380,1733897491346,-500.0,0.00010979,2]
[344961381,1733897491355,-500.0,0.00010979,2]
[344961382,1733897491364,-500.0,0.00010979,2]
[344961383,1733897491373,-500.0,0.00010979,2]
[344961384,1733897491383,-478.79895523,0.00010979,2]
[344961385,1733897491392,-1444.8,0.00010979,2]
[344961386,1733897491402,-1444.8,0.00010979,2]
[344961387,1733897491411,-500.0,0.00010979,2]
[344961388,1733897491421,-1444.8,0.00010979,2]
[344961389,1733897491430,-500.0,0.00010979,2]
[344961390,1733897491440,-1444.8,0.00010979,2]
[344961391,1733897491449,-500.0,0.00010979,2]
[344961392,1733897491458,-500.0,0.00010979,2]
[344961393,1733897491468,-500.0,0.00010979,2]
[344961394,1733897491478,-1444.8,0.00010979,2]
[344961395,1733897491488,-500.0,0.00010979,2]
[344961396,1733897491497,-500.0,0.00010979,2]
[344961397,1733897491508,-1444.8,0.00010979,2]
[344961398,1733897491517,-500.0,0.00010979,2]
[344961399,1733897491526,-500.0,0.00010979,2]
[344961400,1733897491536,-1444.8,0.00010979,2]
[344961401,1733897491545,-500.0,0.00010979,2]
[344961402,1733897491555,-1444.8,0.00010979,2]
[344961403,1733897491565,-500.0,0.00010979,2]
[344961404,1733897491574,-1444.8,0.00010979,2]
[344961405,1733897491583,-500.0,0.00010979,2]
[344961406,1733897491592,-1444.8,0.00010979,2]
[344961407,1733897491601,-497.07123168,0.00010979,2]
[344961408,1733897491611,-1444.80206079,0.00010979,2]
[344961409,1733897491625,-3000.0,0.00010979,2]
[344961410,1733897491636,-500.0,0.00010979,2]
[344961411,1733897491647,-500.0,0.00010979,2]
[344961412,1733897491656,-500.0,0.00010979,2]
[344961413,1733897491668,-500.0,0.00010979,2]
[344961414,1733897491677,-500.0,0.00010979,2]
[344961415,1733897491687,-500.0,0.00010979,2]
[344961416,1733897491696,-500.0,0.00010979,2]
[344961417,1733897491705,-500.0,0.00010979,2]
[344961418,1733897491714,-500.0,0.00010979,2]
[344961419,1733897491723,-308.2,0.00010979,2]
[344961420,1733897491732,-500.0,0.00010979,2]
[344961421,1733897491741,-500.0,0.00010979,2]
[344961422,1733897491750,-500.0,0.00010979,2]
[344961423,1733897491763,-501.16127583,0.00010979,2]
[344961424,1733897491773,-501.30510657,0.00010979,2]
[344961425,1733897491784,-500.0,0.00010979,2]
[344961426,1733897491794,-500.0,0.00010979,2]
[344961427,1733897491803,-500.0,0.00010979,2]
[344961428,1733897491813,-500.0,0.00010979,2]
[344961429,1733897491823,-500.0,0.00010979,2]
[344961430,1733897491834,-500.0,0.00010979,2]
[344961431,1733897491847,-500.0,0.00010979,2]
[344961432,1733897491857,-500.0,0.00010979,2]
[344961433,1733897491867,-500.0,0.00010979,2]
[344961434,1733897491877,-500.0,0.00010979,2]
[344961435,1733897491886,-404.44627126,0.00010979,2]
[344961436,1733897491895,-500.0,0.00010979,2]
[344961437,1733897491905,-150.0,0.00010979,2]
[344961438,1733897491915,-500.0,0.00010979,2]
[344961439,1733897491925,-150.0,0.00010979,2]
[344961440,1733897491935,-150.54398006,0.00010979,2]
[344961441,1733897491944,-500.0,0.00010979,2]
[344961442,1733897491954,-500.0,0.00010979,2]
[344961443,1733897491963,-500.0,0.00010979,2]
[344961444,1733897491972,-500.0,0.00010979,2]
[344961445,1733897491983,-500.0,0.00010979,2]
[344961446,1733897491993,-249.7192,0.00010979,2]
[344961447,1733897492003,-500.0,0.00010979,2]
[344961448,1733897492013,-501.6681256,0.00010979,2]
[344961449,1733897492022,-500.0,0.00010979,2]
[344961450,1733897492032,-500.0,0.00010979,2]
[344961451,1733897492042,-500.0,0.00010979,2]
[344961452,1733897492053,-500.0,0.00010979,2]
[344961453,1733897492063,-500.0,0.00010979,2]
[344961454,1733897492073,-170.33,0.00010979,2]
[344961455,1733897492083,-500.0,0.00010979,2]
[344961456,1733897492092,-500.0,0.00010979,2]
[344961457,1733897492102,-500.0,0.00010979,2]
[344961458,1733897492111,-500.0,0.00010979,2]
[344961459,1733897492120,-500.0,0.00010979,2]
[344961460,1733897492130,-500.0,0.00010979,2]
[344961461,1733897492139,-500.0,0.00010979,2]
[344961462,1733897492148,-500.0,0.00010979,2]
[344961463,1733897492157,-500.0,0.00010979,2]
[344961464,1733897492166,-500.0,0.00010979,2]
[344961465,1733897492175,-500.0,0.00010979,2]
[344961466,1733897492184,-500.0,0.00010979,2]
[344961467,1733897492194,-500.0,0.00010979,2]
[344961468,1733897492203,-500.0,0.00010979,2]
[344961469,1733897492212,-500.0,0.00010979,2]
[344961470,1733897492221,-500.0,0.00010979,2]
[344961471,1733897492230,-500.0,0.00010979,2]
[344961472,1733897492239,-500.0,0.00010979,2]
[344961473,1733897492247,-500.0,0.00010979,2]
[344961474,1733897492261,-500.0,0.00010979,2]
[344961475,1733897492272,-173.64298687,0.00010979,2]
[344961476,1733897492282,-500.0,0.00010979,2]
[344961477,1733897492291,-500.0,0.00010979,2]
[344961478,1733897492301,-500.0,0.00010979,2]
[344961479,1733897492310,-500.0,0.00010979,2]
[344961480,1733897492319,-493.45,0.00010979,2]
[344961481,1733897492329,-500.0,0.00010979,2]
[344961482,1733897492338,-500.0,0.00010979,2]
[344961483,1733897492348,-500.0,0.00010979,2]
[344961484,1733897492358,-500.0,0.00010979,2]
[344961485,1733897492368,-500.0,0.00010979,2]
[344961486,1733897492377,-500.0,0.00010979,2]
[344961487,1733897492387,-500.0,0.00010979,2]
[344961488,1733897492396,-500.0,0.00010979,2]
[344961489,1733897492405,-500.0,0.00010979,2]
[344961490,1733897492414,-500.0,0.00010979,2]
[344961491,1733897492424,-215.24,0.00010979,2]
[344961492,1733897492433,-500.0,0.00010979,2]
[344961493,1733897492442,-500.0,0.00010979,2]
[344961494,1733897492452,-500.0,0.00010979,2]
[344961495,1733897492461,-500.0,0.00010979,2]
[344961496,1733897492471,-454.91,0.00010979,2]
[344961497,1733897492480,-2524.9,0.00010979,2]
[344961498,1733897492489,-503.87580425,0.00010979,2]
[344961499,1733897492500,-2524.9,0.00010979,2]
[344961500,1733897492511,-2524.9,0.00010979,2]
[344961501,1733897492522,-2524.9,0.00010979,2]
[344961502,1733897492531,-2524.9,0.00010979,2]
[344961503,1733897492540,-2524.9,0.00010979,2]
[344961504,1733897492550,-2524.9,0.00010979,2]
[344961505,1733897492560,-2524.9,0.00010979,2]
[344961506,1733897492569,-2524.9,0.00010979,2]
[344961507,1733897492579,-2524.9,0.00010979,2]
[344961508,1733897492588,-2525.1020769,0.00010979,2]
[344961509,1733897492598,-579.82,0.00010979,2]
[344961510,1733897492607,-579.82,0.00010979,2]
[344961511,1733897492617,-1472.69,0.00010979,2]
[344961512,1733897492626,-579.82,0.00010979,2]
[344961513,1733897492635,-1472.69,0.00010979,2]
[344961514,1733897492645,-579.82,0.00010979,2]
[344961515,1733897492654,-1472.69,0.00010979,2]
[344961516,1733897492663,-579.82,0.00010979,2]
[344961517,1733897492673,-1472.69,0.00010979,2]
[344961518,1733897492682,-579.82,0.00010979,2]
[344961519,1733897492691,-1472.69,0.00010979,2]
[344961520,1733897492701,-579.82,0.00010979,2]
[344961521,1733897492710,-1472.69,0.00010979,2]
[344961522,1733897492720,-579.82,0.00010979,2]
[344961523,1733897492730,-1472.69,0.00010979,2]
[344961524,1733897492874,-579.82,0.00010979,2]
[344961525,1733897492884,-1472.69,0.00010979,2]
[344961526,1733897492894,-579.82,0.00010979,2]
[344961527,1733897492903,-1472.69,0.00010979,2]
[344961528,1733897492913,-579.82,0.00010979,2]
[344961529,1733897492922,-1472.69,0.00010979,2]
[344961530,1733897492932,-579.9226106,0.00010979,2]
[344961531,1733897492941,-1472.81,0.00010979,2]
[344961532,1733897492950,-1459.97924388,0.00010979,2]
[344961533,1733897492959,-2241.76318895,0.0001098,2]
[344961534,1733897492969,-1802.7619094,0.0001098,2]
[344961535,1733897492979,-4986407.32876384,0.0001098,2]
[344961536,1733897492988,-151.0,0.0001098,2]
[344961537,1733897492997,-151.0,0.0001098,2]
[344961538,1733897493007,-151.0,0.0001098,2]
[344961539,1733897493016,-151.0,0.0001098,2]
[344961540,1733897493027,-285.664577,0.0001098,2]
[344961541,1733897493037,-285.664577,0.0001098,2]
[344961542,1733897493047,-1802.7619094,0.0001098,2]
[344961543,1733897493056,-1802.7619094,0.00010982,2]
[344961544,1733897493066,-2241.76318895,0.00010984,2]
[344961545,1733897493075,-2241.76318895,0.00010984,2]
[344961546,1733897493085,-1459.97924388,0.00010985,2]
[344961547,1733897493095,-689.28269869,0.00010987,2]
[344961548,1733897493105,-1459.97924388,0.00010988,2]
[344961549,1733897493114,-809.23964592,0.00010989,2]
[344961550,1733897493123,-1459.97924388,0.0001099,2]
[344961551,1733897493133,-216.04,0.0001099,2]
[344961552,1733897493142,-809.23964592,0.00010992,2]
[344961553,1733897493152,-1802.7619094,0.00010994,2]
[344961554,1733897493161,-1191.879,0.00010995,2]
[344961555,1733897493171,-2241.76318895,0.00010996,2]
[344961556,1733897493180,-1459.97924388,0.00010997,2]
[344961557,1733897493190,-689.28269869,0.00010997,2]
[344961558,1733897493199,-150.0,0.00010998,2]
[344961559,1733897493209,-2241.76318895,0.00010999,2]
[344961560,1733897493220,-150.0,0.00010999,2]
[344961561,1733897493229,-208.73709422,0.00010999,2]
[344961562,1733897493239,-809.23964592,0.00011,2]
[344961563,1733897493249,-4988994.40650331,0.00011,2]
[344961564,1733897493259,-66854.90708544,0.00011,2]
[344961565,1733897493269,-51966.0,0.00011,2]
[344961566,1733897493280,-250.0,0.00011,2]
[344961567,1733897493289,-250.0,0.00011,2]
[344961568,1733897493300,-250.0,0.00011,2]
[344961569,1733897493309,-250.0,0.00011,2]
[344961570,1733897493320,-250.0,0.00011,2]
[344961571,1733897493330,-250.0,0.00011,2]
[344961572,1733897493339,-250.0,0.00011,2]
[344961573,1733897493349,-250.0,0.00011,2]
[344961574,1733897493358,-250.0,0.00011,2]
[344961575,1733897493368,-250.0,0.00011,2]
[344961576,1733897493378,-250.0,0.00011,2]
[344961577,1733897493387,-250.0,0.00011,2]
[344961578,1733897493397,-250.0,0.00011,2]
[344961579,1733897493408,-250.0,0.00011,2]
[344961580,1733897493419,-250.0,0.00011,2]
[344961581,1733897493429,-250.0,0.00011,2]
[344961582,1733897493439,-250.0,0.00011,2]
[344961583,1733897493448,-250.0,0.00011,2]
[344961584,1733897493459,-250.0,0.00011,2]
[344961585,1733897493468,-250.0,0.00011,2]
[344961586,1733897493478,-250.0,0.00011,2]
[344961587,1733897493488,-250.0,0.00011,2]
[344961588,1733897493497,-250.0,0.00011,2]
[344961589,1733897493509,-250.0,0.00011,2]
[344961590,1733897493519,-250.0,0.00011,2]
[344961591,1733897493528,-250.0,0.00011,2]
[344961592,1733897493538,-250.0,0.00011,2]
[344961593,1733897493548,-250.0,0.00011,2]
[344961594,1733897493558,-250.0,0.00011,2]
[344961595,1733897493568,-250.0,0.00011,2]
[344961596,1733897493578,-250.0,0.00011,2]
[344961597,1733897493588,-250.0,0.00011,2]
[344961598,1733897493598,-250.0,0.00011,2]
[344961599,1733897493608,-250.0,0.00011,2]
[344961600,1733897493617,-250.0,0.00011,2]
[344961601,1733897493627,-250.0,0.00011,2]
[344961602,1733897493637,-250.0,0.00011,2]
[344961603,1733897493647,-250.0,0.00011,2]
[344961604,1733897493657,-250.0,0.00011,2]
[344961605,1733897493667,-443.3,0.00011,2]
[344961606,1733897493677,-367.0,0.00011,2]
[344961607,1733897493687,-1000.0,0.00011019,2]
[344961608,1733897493697,-2658.0,0.00011041,2]
[344961609,1733897493706,-3980.0,0.00011041,2]
[344961610,1733897493715,-166.64,0.00011043,2]
[344961611,1733897493725,-150.0,0.00011078,2]
[344961612,1733897493734,-150.0,0.00011078,2]
[344961613,1733897493743,-150.0,0.00011078,2]
[344961614,1733897493753,-150.0,0.00011078,3]
[344961615,1733897493767,-150.0,0.00011078,3]
[344961616,1733897493777,-150.0,0.00011078,3]
[344961617,1733897493787,-151.0,0.00011078,2]
[344961618,1733897493800,-151.0,0.00011078,2]
[344961619,1733897493810,-800.0,0.00011084,2]
[344961620,1733897493820,-800.0,0.00011084,2]
[344961621,1733897493830,-800.0,0.00011084,2]
[344961622,1733897493840,-800.0,0.00011084,2]
[344961623,1733897493850,-800.0,0.00011084,2]
[344961624,1733897493861,-800.0,0.00011084,2]
[344961625,1733897493871,-201.63399,0.00011085,2]
[344961626,1733897493880,-201.63399,0.00011085,2]
[344961627,1733897493891,-295.95,0.00011087,2]
[344961628,1733897493901,-71833.12970789,0.0001109,2]
[344961629,1733897493911,-80000.0,0.00011095,2]
[344961630,1733897493921,-31563.79443599,0.00011099,2]
[344961631,1733897493931,-150.0,0.00011099,2]
[344961632,1733897493941,-202.0,0.00011099,2]
[344961633,1733897493955,-202.0,0.00011099,2]
[344961634,1733897493965,-202.0,0.00011099,2]
[344961635,1733897493975,-202.0,0.00011099,2]
[344961636,1733897493985,-202.0,0.00011099,2]
[344961637,1733897493995,-202.0,0.00011099,2]
[344961638,1733897494005,-202.0,0.00011099,2]
[344961639,1733897494015,-202.0,0.00011099,2]
[344961640,1733897494025,-202.0,0.00011099,2]
[344961641,1733897494034,-202.0,0.00011099,2]
[344961642,1733897494044,-202.0,0.00011099,2]
[344961643,1733897494054,-27204518.48806559,0.000111,2]
[344961644,1733897494063,-1516687.15608236,0.000111,2]
[344961645,1733897494072,-4663248.32089368,0.000111,2]
[344961646,1733897494083,-2975472.15409683,0.000111,2]
[344961647,1733897494092,-1209695.90612323,0.000111,2]
[344961648,1733897494101,-1252276.25008347,0.000111,2]
[344961649,1733897494111,-1886206.37233765,0.000111,2]
[344961650,1733897494121,-3256897.76155096,0.000111,2]
[344961651,1733897494130,-1634341.99694387,0.000111,2]
[344961652,1733897494140,-2243.05,0.000111,2]
[344961653,1733897494149,-1445606.5800876,0.000111,2]
[344961654,1733897494159,-201.63399,0.000111,2]
[344961655,1733897494168,-201.63399,0.000111,2]
[344961656,1733897494178,-201.63399,0.000111,2]
[344961657,1733897494187,-201.63399,0.000111,2]
[344961658,1733897494196,-201.63399,0.000111,2]
[344961659,1733897494205,-201.63399,0.000111,2]
[344961660,1733897494215,-201.63399,0.000111,2]
[344961661,1733897494224,-201.63399,0.000111,2]
[344961662,1733897494233,-201.63399,0.000111,2]
[344961663,1733897494242,-201.63399,0.000111,2]
[344961664,1733897494251,-201.63399,0.000111,2]
[344961665,1733897494261,-201.63399,0.000111,2]
[344961666,1733897494271,-201.63399,0.000111,2]
[344961667,1733897494280,-201.63399,0.000111,2]
[344961668,1733897494289,-201.63399,0.000111,2]
[344961669,1733897494298,-201.63399,0.000111,2]
[344961670,1733897494308,-201.63399,0.000111,2]
[344961671,1733897494317,-201.633988,0.000111,2]
[344961672,1733897494327,-3003000.00007055,0.000111,2]
[344961673,1733897494337,-151.0,0.000111,2]
[344961674,1733897494347,-151.0,0.000111,2]
[344961675,1733897494356,-151.0,0.000111,2]
[344961676,1733897494366,-151.0,0.000111,2]
[344961677,1733897494375,-151.0,0.000111,2]
[344961678,1733897494385,-151.0,0.000111,2]
[344961679,1733897494395,-151.0,0.000111,2]
[344961680,1733897494404,-25927331.7749413,0.000111,2]
[344961681,1733897494971,-8606232.72,0.000111,2]
[344961682,1733897494982,-1821158.295,0.000111,2]
[344961683,1733897494994,-2252851.10892,0.000111,2]
[344961684,1733897495005,-9784.52891037,0.000111,2]
[344961685,1733897495017,-441.13453195,0.000111,2]
[344961686,1733897495544,-500.0,0.00010977,2]
[344961687,1733897495554,-500.0,0.00010977,2]
[344961688,1733897495564,-500.0,0.00010978,2]
[344961689,1733897495573,-500.0,0.00010978,2]
[344961690,1733897495583,-500.0,0.00010978,2]
[344961691,1733897495593,-500.0,0.00010978,2]
[344961692,1733897495603,-500.0,0.00010978,2]
[344961693,1733897495612,-500.0,0.00010978,2]
[344961694,1733897495622,-500.0,0.00010978,2]
[344961695,1733897495631,-124.01554964,0.00010978,2]
[344961696,1733897495643,-375.98445036,0.00010978,2]
[344961697,1733897495653,-500.0,0.00010978,2]
[344961698,1733897495662,-500.0,0.00010978,2]
[344961699,1733897495671,-426.28,0.00010978,2]
[344961700,1733897495681,-500.0,0.00010979,2]
[344961701,1733897495690,-500.0,0.00010979,2]
[344961702,1733897495699,-525.03316813,0.00010979,2]
[344961703,1733897495710,-2670.81814473,0.000111,2]
[344961708,1733898233364,707.55,8.219e-05,2]
[344961709,1733898366050,899.04961163,7e-05,2]
[344961721,1733898537654,200.29312909,8.178e-05,2]
[344961723,1733898631959,-200.0,9.835e-05,2]
[344961724,1733898631968,-250.0,9.893e-05,2]
[344961725,1733898631978,-487.31192926,9.923e-05,2]
[344961726,1733898631988,-311.98,9.927e-05,2]
[344961727,1733898631997,-300.0,9.99e-05,2]
[344961729,1733898632006,-6244.47331182,9.991e-05,2]
[344961732,1733898632038,-1209.10423545,9.991e-05,2]
[344961733,1733898632049,-1727.4936,9.991e-05,2]
[344961734,1733898632060,-1830.51720949,9.991e-05,2]
[344961735,1733898632197,-12888.41164324,9.991e-05,2]
[344961736,1733898632207,-250.0,0.00010023,2]
[344961737,1733898632216,-303.37,0.00010031,2]
[344961738,1733898632226,-250.0,0.00010042,2]
[344961739,1733898632235,-1000.0,0.00010112,2]
[344961740,1733898632244,-895.68,0.00010173,2]
[344961741,1733898632253,-166.64,0.00010177,2]
[344961742,1733898632262,-707.55,0.00010472,2]
[344961743,1733898632271,-150.0,0.00010509,2]
[344961744,1733898632280,-316.337,0.0001055,2]
[344961745,1733898632290,-4045.8782,0.00010788,2]
[344961746,1733898632299,-2187.53885546,0.000108,2]
[344961747,1733898632309,-1000.0,0.00010857,2]
[344961748,1733898632319,-150.0,0.00010857,2]
[344961749,1733898632328,-24255.0052996,0.00010858,2]
[344961750,1733898632340,-964.380752,0.00010858,2]
[344961752,1733898637981,-22323.91042253,0.00010858,2]
[344961753,1733898637992,-3933.28328103,0.00010858,2]
[344961754,1733898638006,-1844.95,0.00010858,2]
[344961755,1733898638019,-2029.05685,0.00010858,2]
[344961756,1733898638030,-1631.0,0.00010858,2]
[344961757,1733898638101,-443.81585153,0.00010858,2]
[344961758,1733898638112,-2124.29883,0.00010858,2]
[344961759,1733898638123,-3672.73828651,0.00010858,2]
[344961760,1733898638238,-1100.0,0.00010858,2]
[344961761,1733898638249,-697.22222227,0.00010858,2]
[344961762,1733898638260,-562.99496502,0.00010858,2]
[344961763,1733898638313,-34435.37823951,0.00010858,2]
[344961764,1733898638323,-1000.0,0.00010858,2]
[344961765,1733898638332,-2500.0,0.00010858,2]
[344961766,1733898638341,-3428.3592,0.00010878,2]
[344961767,1733898638350,-8136.2625605,0.00010888,2]
[344961768,1733898638360,-3621.85528402,0.00010888,2]
[344961922,1733898640014,-5828.2290508,0.00010888,2]
[344961924,1733898640026,-990.2,0.00010888,2]
[344961926,1733898640036,-4267.74965265,0.00010888,2]
[344961928,1733898640047,-447.03399999,0.00010888,2]
[344961930,1733898640058,-640.8,0.00010888,2]
[344961932,1733898640069,-7051.34599854,0.00010888,2]
[344961939,1733898640120,-658.7300751,0.00010888,2]
[344961953,1733898640265,-397.25210373,0.00010888,2]
[344961956,1733898640278,-571.72170112,0.00010888,2]
[344962258,1733898643267,-9664.85402921,0.00010888,2]
[344962261,1733898643277,-151.0,0.00010932,2]
[344962263,1733898643287,-150.0,0.00010932,2]
[344962265,1733898643296,-80937.99624834,0.00010954,2]
[344962267,1733898643306,-500.0,0.00010958,2]
[344962269,1733898643315,-500.0,0.00010958,2]
[344962271,1733898643324,-500.0,0.00010958,2]
[344962273,1733898643334,-500.0,0.00010958,2]
[344962275,1733898643343,-654.46,0.00010958,2]
[344962277,1733898643352,-500.0,0.00010958,2]
[344962278,1733898643361,-500.0,0.00010958,2]
[344962281,1733898643371,-578.85,0.00010958,2]
[344962283,1733898643380,-500.0,0.00010958,2]
[344962285,1733898643396,-500.0,0.00010958,2]
[344962286,1733898643405,-500.0,0.00010958,2]
[344962288,1733898643415,-500.0,0.00010958,2]
[344962291,1733898643424,-500.0,0.00010958,2]
[344962292,1733898643433,-515.47,0.00010958,2]
[344962295,1733898643442,-785.07,0.00010958,2]
[344962296,1733898643451,-600.38,0.00010958,2]
[344962299,1733898643461,-500.0,0.00010958,2]
[344962300,1733898643471,-500.0,0.00010958,2]
[344962302,1733898643484,-500.0,0.00010958,2]
[344962305,1733898643494,-500.0,0.00010958,2]
[344962307,1733898643504,-500.0,0.00010958,2]
[344962309,1733898643513,-500.0,0.00010958,2]
[344962311,1733898643525,-588.06,0.00010958,2]
[344962313,1733898643535,-500.0,0.00010958,2]
[344962314,1733898643544,-820.67,0.00010958,2]
[344962317,1733898643555,-500.0,0.00010958,2]
[344962319,1733898643564,-816.62,0.00010958,2]
[344962321,1733898643574,-944.41,0.00010958,2]
[344962322,1733898643583,-500.0,0.00010958,2]
[344962323,1733898643592,-500.0,0.00010958,2]
[344962324,1733898643602,-822.11,0.00010958,2]
[344962325,1733898643611,-500.0,0.00010958,2]
[344962326,1733898643620,-500.0,0.00010958,2]
[344962327,1733898643630,-500.0,0.00010958,2]
[344962328,1733898643646,-500.0,0.00010958,2]
[344962329,1733898643656,-500.0,0.00010958,2]
[344962331,1733898643665,-500.0,0.00010958,2]
[344962333,1733898643675,-500.0,0.00010958,2]
[344962335,1733898643685,-801.91,0.00010958,2]
[344962337,1733898643694,-500.0,0.00010958,2]
[344962339,1733898643704,-500.0,0.00010958,2]
[344962341,1733898643713,-500.0,0.00010958,2]
[344962343,1733898643723,-762.8,0.00010958,2]
[344962345,1733898643732,-500.0,0.00010958,2]
[344962347,1733898643743,-730.94,0.00010958,2]
[344962349,1733898643752,-730.94,0.00010958,2]
[344962351,1733898643761,-500.0,0.00010958,2]
[344962353,1733898643771,-500.0,0.00010958,2]
[344962355,1733898643780,-553.5,0.00010958,2]
[344962357,1733898643789,-553.5,0.00010958,2]
[344962358,1733898643798,-500.0,0.00010958,2]
[344962360,1733898643807,-500.0,0.00010958,2]
[344962362,1733898643816,-500.0,0.00010958,2]
[344962365,1733898643826,-500.0,0.00010958,2]
[344962366,1733898643835,-500.0,0.00010958,2]
[344962369,1733898643845,-150.0,0.00010958,2]
[344962370,1733898643854,-500.0,0.00010958,2]
[344962372,1733898643863,-798.15,0.00010958,2]
[344962374,1733898643872,-655.99,0.00010958,2]
[344962376,1733898643881,-655.34,0.00010958,2]
[344962378,1733898643897,-536.52,0.00010958,2]
[344962380,1733898643907,-500.0,0.00010958,2]
[344962382,1733898643916,-500.0,0.00010958,2]
[344962384,1733898643926,-881.4,0.00010958,2]
[344962386,1733898643935,-1581.51,0.00010958,2]
[344962388,1733898643944,-500.0,0.00010958,2]
[344962390,1733898643954,-1154.1,0.00010958,2]
[344962392,1733898643964,-500.0,0.00010958,2]
[344962394,1733898643973,-669.87,0.00010958,2]
[344962396,1733898643983,-739.9,0.00010958,2]
[344962398,1733898643992,-716.09,0.00010958,2]
[344962400,1733898644002,-500.0,0.00010958,2]
[344962401,1733898644011,-500.0,0.00010958,2]
[344962403,1733898644023,-500.0,0.00010958,2]
[344962405,1733898644044,-500.0,0.00010958,2]
[344962407,1733898644059,-826.16,0.00010958,2]
[344962410,1733898644069,-500.0,0.00010958,2]
[344962411,1733898644078,-500.0,0.00010958,2]
[344962413,1733898644087,-349.89705083,0.00010958,2]
[344962415,1733898644097,-500.0,0.00010958,2]
[344962417,1733898644107,-500.0,0.00010958,2]
[344962419,1733898644116,-500.0,0.00010976,2]
[344962421,1733898644126,-500.0,0.00010976,2]
[344962423,1733898644136,-730.94,0.00010976,2]
[344962425,1733898644146,-553.5,0.00010976,2]
[344962427,1733898644155,-500.0,0.00010976,2]
[344962429,1733898644164,-500.0,0.00010976,2]
[344962431,1733898644175,-500.0,0.00010976,2]
[344962433,1733898644184,-500.0,0.00010977,2]
[344962435,1733898644193,-500.0,0.00010977,2]
[344962437,1733898644203,-500.0,0.00010977,2]
[344962439,1733898644212,-500.0,0.00010977,2]
[344962441,1733898644222,-500.0,0.00010977,2]
[344962443,1733898644231,-500.0,0.00010977,2]
[344962445,1733898644240,-500.0,0.00010977,2]
[344962447,1733898644249,-654.46,0.00010977,2]
[344962449,1733898644259,-654.46,0.00010977,2]
[344962451,1733898644269,-654.46,0.00010977,2]
[344962453,1733898644279,-500.0,0.00010977,2]
[344962455,1733898644288,-500.0,0.00010977,2]
[344962457,1733898644297,-500.0,0.00010977,2]
[344962459,1733898644307,-500.0,0.00010977,2]